fUST/lending_fUST_20251102
["ID","MTS","AMOUNT","RATE_DAILY","PERIOD"]
[392844679,1762042232770,-2277.11448522,0.00032541,2]
[392844741,1762042238595,-2722.88551478,0.00032541,2]
[392844742,1762042238607,-171.0,0.00032908,3]
[392844748,1762042238746,-372.66850626,0.00032909,2]
[392844750,1762042238757,-200.0,0.00033,2]
[392844752,1762042238767,-158.61227196,0.000332,117]
[392844754,1762042238776,-161.207409,0.00033248,7]
[392844756,1762042238785,-160.0,0.00034031,2]
[392844758,1762042238795,-237.10444347,0.00034641,2]
[392844760,1762042238805,-250.0,0.00034881,2]
[392844762,1762042238814,-168.0,0.00035211,2]
[392844764,1762042238824,-283.0,0.00035709,2]
[392844766,1762042238833,-168.0,0.00035872,2]
[392844768,1762042238843,-1712.22185453,0.00036086,15]
[392844770,1762042238859,-2555.38814547,0.00036086,15]
[392844772,1762042238869,-168.0,0.00036095,2]
[392844774,1762042238879,-284.0,0.00036165,2]
[392844776,1762042238889,-1699.02670443,0.00036166,2]
[392844778,1762042238899,-161.207409,0.00036186,15]
[392844780,1762042238909,-1815.1204694,0.00036199,2]
[392844782,1762042238919,-381.7496315,0.00036199,2]
[392844784,1762042238929,-854.8590252,0.00036199,2]
[392844786,1762042238939,-1432.79945736,0.000362,2]
[392844788,1762042238949,-168.0,0.00036201,2]
[392844789,1762042238959,-283.0,0.0003621,7]
[392844791,1762042238968,-168.0,0.00036228,2]
[392844793,1762042238978,-151.0,0.00036254,2]
[392844795,1762042238987,-151.0,0.00036254,2]
[392844797,1762042238997,-151.0,0.00036254,2]
[392844798,1762042239006,-151.0,0.00036254,2]
[392844799,1762042239016,-151.0,0.00036254,2]
[392844800,1762042239025,-151.0,0.00036254,2]
[392844801,1762042239036,-151.0,0.00036254,2]
[392844802,1762042239045,-151.0,0.00036254,2]
[392844803,1762042239055,-151.0,0.00036254,2]
[392844804,1762042239064,-151.0,0.00036254,2]
[392844805,1762042239073,-151.0,0.00036254,2]
[392844806,1762042239083,-151.0,0.00036254,2]
[392844807,1762042239092,-151.0,0.00036254,2]
[392844808,1762042239102,-151.0,0.00036254,2]
[392844809,1762042239111,-151.0,0.00036254,2]
[392844810,1762042239120,-151.0,0.00036254,2]
[392844811,1762042239129,-151.0,0.00036254,2]
[392844812,1762042239140,-151.0,0.00036254,2]
[392844813,1762042239149,-151.0,0.00036254,2]
[392844814,1762042239158,-151.0,0.00036254,2]
[392844815,1762042239167,-769.31,0.00036256,10]
[392844816,1762042239176,-893.58,0.00036266,3]
[392844817,1762042239186,-446.79,0.00036266,3]
[392844818,1762042239195,-223.39,0.00036266,3]
[392844819,1762042239205,-670.22,0.00036266,3]
[392844820,1762042239215,-3730.68906809,0.00036266,3]
[392845057,1762042329930,160.99,0.00032876,120]
[392845081,1762043284891,421.56476089,0.00010618,2]
[392845082,1762043304549,6718.38743955,0.00017,2]
[392845084,1762043314487,2860.05779956,0.0002465,2]
[392845085,1762043314512,10000.01,0.0002465,2]
[392845086,1762043314534,10000.01,0.0002465,2]
[392845087,1762043314556,5501.77306008,0.0002465,2]
[392845088,1762043316687,4498.23693992,0.00024142,2]
[392845089,1762043325521,-7925.28247402,0.00024142,2]
[392845090,1762043328447,-10000.01,0.00024142,2]
[392845091,1762043331475,-10000.01,0.00024142,2]
[392845092,1762043342252,300.0,0.00024141,2]
[392845094,1762043387465,150.0,0.00023055,2]
[392845095,1762043395427,5000.0,0.00024142,2]
[392845098,1762043417462,4550.01,0.00024142,2]
[392845099,1762043417486,449.99,0.00024142,2]
[392845100,1762043418907,2310.19609881,0.00024042,2]
[392845101,1762043420585,321.021557,0.00013699,2]
[392845102,1762043420788,321.021557,0.00020187,2]
[392845103,1762043424784,1486.64836635,0.00024042,2]
[392845135,1762043431785,-5473.55058962,0.00024142,2]
[392845136,1762043432281,500.0,0.00024141,2]
[392845137,1762043432311,500.0,0.00024141,2]
[392845138,1762043432337,500.0,0.00024141,2]
[392845139,1762043432363,500.0,0.00024141,2]
[392845140,1762043432412,500.0,0.00024141,2]
[392845141,1762043432438,500.0,0.00024141,2]
[392845142,1762043432465,500.0,0.00024141,2]
[392845143,1762043432492,500.0,0.00024141,2]
[392845144,1762043432596,500.0,0.00024141,2]
[392845145,1762043432622,500.0,0.00024141,2]
[392845146,1762043432647,111.13242084,0.00024141,2]
[392845147,1762043432668,388.86757916,0.00024141,2]
[392845148,1762043432694,234.35659188,0.00024141,2]
[392845149,1762043432719,500.0,0.00024141,2]
[392845150,1762043432750,500.0,0.00024141,2]
[392845151,1762043432785,500.0,0.00024141,2]
[392845152,1762043432962,500.0,0.00024141,2]
[392845153,1762043432993,500.0,0.00024141,2]
[392845178,1762043437672,-19416.80294564,0.00024142,2]
[392845185,1762043439407,5000.0,0.00024142,2]
[392845300,1762043442803,-24008.39105118,0.00024142,2]
[392845301,1762043442814,-425.0,0.00024142,2]
[392845302,1762043442824,-150.0,0.00024153,2]
[392845303,1762043442833,-150.0,0.00024571,2]
[392845304,1762043442843,-441.97567115,0.000249,2]
[392845305,1762043442853,-386.29,0.0002499,10]
[392845306,1762043442863,-233.39978359,0.00024999,2]
[392845307,1762043442874,-5000.0,0.00025,2]
[392845308,1762043442885,-98978.869607,0.00025,2]
[392845319,1762043453690,500.0,0.00024141,2]
[392845320,1762043453749,500.0,0.00024141,2]
[392845321,1762043453806,384.73437463,0.00024141,2]
[392845325,1762043464207,150.0,0.00021534,2]
[392845326,1762043464600,150.0,0.00022559,2]
[392845327,1762043465006,150.0,0.00023584,2]
[392845329,1762043539458,42.05145433,0.00021438,2]
[392845330,1762043539482,107.94854567,0.00021438,2]
[392845331,1762043539878,150.0,0.00022458,2]
[392845332,1762043540283,150.0,0.00023479,2]
[392845333,1762043548329,169.226947,0.00030137,120]
[392845335,1762043611955,150.0,0.00022432,2]
[392845336,1762043612346,150.0,0.000235,2]
[392845338,1762043638300,5000.0,0.00024142,2]
[392845339,1762043654369,4292.06145433,0.00024142,2]
[392845340,1762043654391,707.93854567,0.00024142,2]
[392845341,1762043662024,5000.0,0.00024142,2]
[392845342,1762043677219,4292.07145433,0.00024142,2]
[392845343,1762043677240,707.92854567,0.00024142,2]
[392845344,1762043684999,150.0,0.0002207,2]
[392845345,1762043685418,150.0,0.00023121,2]
[392845346,1762043699588,5000.0,0.00024142,2]
[392845347,1762043722447,3378.49518194,0.00024142,2]
[392845348,1762043758898,150.0,0.00022257,2]
[392845349,1762043759310,150.0,0.00023317,2]
[392845351,1762043793678,8575.2577,0.00038027,60]
[392845352,1762043830591,150.0,0.0002212,2]
[392845353,1762043830990,150.0,0.00023173,2]
[392845354,1762043872940,-183.46693851,0.00024161,2]
[392845355,1762043880027,-215.53506521,0.00024161,2]
[392845356,1762043884009,-159.26559248,0.00024161,2]
[392845357,1762043886431,-289.79061869,0.00024161,2]
[392845358,1762043901426,150.0,0.00022093,2]
[392845359,1762043901838,150.0,0.00023145,2]
[392845360,1762043902941,-214.37675092,0.00024161,2]
[392845361,1762043908502,-301.93852099,0.00024161,2]
[392845362,1762043908526,-102.88656268,0.00024226,2]
[392845363,1762043932511,-47.11343732,0.00024226,2]
[392845364,1762043932533,-117.6609754,0.00024624,2]
[392845365,1762043968777,271.0,0.00024142,2]
[392845366,1762043970521,150.0,0.00022212,2]
[392845367,1762043970923,150.0,0.0002327,2]
[392845368,1762043977749,-150.0,0.00024327,2]
[392845369,1762043977769,-22.05713814,0.00024762,2]
[392845370,1762044022916,-127.94286186,0.00024762,2]
[392845371,1762044022937,-70.31563849,0.0002489,2]
[392845372,1762044025341,-346.4762763,0.0002489,2]
[392845373,1762044029265,-177.76610083,0.0002489,2]
[392845374,1762044030778,-268.99910647,0.0002489,2]
[392845375,1762044033150,-201.99864785,0.0002489,2]
[392845376,1762044037454,-235.26155066,0.0002489,2]
[392845377,1762044037478,-8.67515802,0.000249,2]
[392845378,1762044040019,150.0,0.00022135,2]
[392845379,1762044040434,150.0,0.00023189,2]
[392845380,1762044052790,-150.0,0.00024243,2]
[392845381,1762044052814,-160.92562351,0.000249,2]
[392845383,1762044083604,-6.42041962,0.000249,2]
[392845384,1762044083629,-187.75049407,0.00024984,2]
[392845385,1762044085945,-160.8061592,0.00024984,2]
[392845386,1762044088961,-239.98752112,0.00024984,2]
[392845387,1762044092617,-380.71823815,0.00024984,2]
[392845388,1762044095606,-230.73758746,0.00024984,2]
[392845389,1762044095626,-166.66,0.00024985,2]
[392845390,1762044095650,-13.88684439,0.00024985,2]
[392845392,1762044106058,150.0,0.00022236,2]
[392845393,1762044106452,150.0,0.00023295,2]
[392845394,1762044106974,-137.11315561,0.00024985,2]
[392845395,1762044107000,-55.75992942,0.00024985,2]
[392845396,1762044109904,-95.24007058,0.00024985,2]
[392845397,1762044109929,-128.79845072,0.00024985,2]
[392845398,1762044128065,-22.20154928,0.00024985,2]
[392845399,1762044128091,-151.0,0.00024985,2]
[392845400,1762044128116,-151.0,0.00024985,2]
[392845401,1762044128140,-48.12326445,0.00024985,2]
[392845402,1762044129803,-102.87673555,0.00024985,2]
[392845403,1762044129826,-139.63196278,0.00024985,2]
[392845404,1762044132363,-11.36803722,0.00024985,2]
[392845405,1762044132387,-151.0,0.00024985,2]
[392845406,1762044132410,-33.63196278,0.00024985,2]
[392845407,1762044134591,-117.36803722,0.00024985,2]
[392845408,1762044134614,-38.68831254,0.00024985,2]
[392845409,1762044137513,-112.31168746,0.00024985,2]
[392845410,1762044137536,-77.06453102,0.00024985,2]
[392845411,1762044139422,-73.93546898,0.00024985,2]
[392845412,1762044139446,-120.59393431,0.00024985,2]
[392845413,1762044141504,-30.40606569,0.00024985,2]
[392845414,1762044141526,-151.0,0.00024985,2]
[392845416,1762044141548,-20.9898011,0.00024985,2]
[392845419,1762044298287,150.0,0.00020811,2]
[392845420,1762044382770,-150.0,0.00024938,2]
[392845421,1762044382798,-14.26,0.00024985,2]
[392845422,1762044398128,-221.65913343,0.00024799,2]
[392845423,1762044400361,-185.15657449,0.00024799,2]
[392845424,1762044425658,150.0,0.00021174,2]
[392845449,1762044631862,-2914.12635742,0.00024799,2]
[392845456,1762044631917,-252.67179586,0.00024799,2]
[392845458,1762044631926,-150.0,0.00024824,2]
[392845460,1762044631935,-854.8590252,0.00024849,2]
[392845461,1762044631945,-1138.21515549,0.0002489,2]
[392845463,1762044631954,-955.19963824,0.000249,2]
[392845465,1762044631963,-480.0,0.00024984,2]
[392845467,1762044631973,-151.0,0.00024985,2]
[392845469,1762044631983,-151.0,0.00024985,2]
[392845471,1762044631993,-13.68324971,0.00024985,2]
[392845585,1762044640706,-3e-08,0.00024985,2]
[392845611,1762044825014,320.0,0.00032877,120]
[392845615,1762045052931,151.0,0.000218,4]
[392845616,1762045053229,151.0,0.000191,2]
[392845617,1762045053532,151.0,0.000164,2]
[392845618,1762045234994,1000.0,0.00032,120]
[392845619,1762045262682,152.0,0.00038023,60]
[392845636,1762045334168,1688.4955187,0.00023845,2]
[392845637,1762045426546,10000.0,0.00032877,120]
[392845638,1762045445351,3000.0,0.00024142,2]
[392845639,1762045452341,156.0,0.00022,2]
[392845640,1762045452693,156.0,0.00023014,7]
[392845641,1762045458843,348.09618229,0.00022981,2]
[392845643,1762045552676,157.0,0.00022,2]
[392845644,1762045552978,157.0,0.00023014,7]
[392845678,1762045832075,-150.0,0.00024178,2]
[392845679,1762045832086,-427.0,0.00024191,2]
[392845681,1762045832095,-151.0,0.000245,10]
[392845683,1762045832105,-752.06469159,0.00024767,2]
[392845685,1762045832115,-1000.0,0.000248,2]
[392845687,1762045832124,-995.93826108,0.00024828,2]
[392845689,1762045832134,-799.0,0.00024884,2]
[392845691,1762045832143,-2810.5258963,0.00024885,2]
[392845693,1762045832152,-854.8590252,0.00024885,2]
[392845695,1762045832162,-854.8590252,0.00024885,2]
[392845697,1762045832171,-636.79975882,0.000249,2]
[392845699,1762045832180,-500.0,0.00024924,2]
[392845701,1762045832189,-568.78788517,0.00024924,2]
[392845714,1762045832308,-647.99296372,0.00024925,2]
[392845717,1762045832327,-26252.78560969,0.00024925,2]
[392845719,1762045832344,-3029.30302228,0.00024925,2]
[392845721,1762045832355,-166.38083822,0.00024985,3]
[392845723,1762045832364,-152.0,0.00024985,3]
[392845725,1762045832374,-152.0,0.00024985,3]
[392845727,1762045832383,-152.0,0.00024985,3]
[392845729,1762045832392,-331.0,0.00024985,3]
[392845730,1762045832401,-152.0,0.00024985,3]
[392845732,1762045832413,-152.0,0.00024985,3]
[392845734,1762045832422,-331.0,0.00024985,3]
[392845736,1762045832432,-152.0,0.00024985,3]
[392845739,1762045832442,-331.0,0.00024985,3]
[392845740,1762045832451,-152.0,0.00024985,3]
[392845742,1762045832462,-331.0,0.00024985,3]
[392845744,1762045832473,-145.48022386,0.00024985,3]
[392845907,1762045846149,-6.51977614,0.00024985,3]
[392845908,1762045846158,-331.0,0.00024985,3]
[392845909,1762045846167,-152.0,0.00024985,3]
[392845910,1762045846176,-331.0,0.00024985,3]
[392845911,1762045846185,-152.0,0.00024985,3]
[392845912,1762045846194,-331.0,0.00024985,3]
[392845913,1762045846202,-152.0,0.00024985,3]
[392845914,1762045846211,-331.0,0.00024985,3]
[392845915,1762045846220,-331.0,0.00024985,3]
[392845916,1762045846229,-152.0,0.00024985,3]
[392845917,1762045846238,-331.0,0.00024985,3]
[392845918,1762045846247,-152.0,0.00024985,3]
[392845919,1762045846256,-331.0,0.00024985,3]
[392845920,1762045846264,-152.0,0.00024985,3]
[392845921,1762045846274,-331.0,0.00024985,3]
[392845922,1762045846286,-152.0,0.00024985,3]
[392845923,1762045846295,-331.0,0.00024985,3]
[392845924,1762045846304,-152.0,0.00024985,3]
[392845925,1762045846313,-156.28196455,0.00024985,3]
[392845926,1762045846323,-152.0,0.00024985,3]
[392845927,1762045846333,-331.0,0.00024985,3]
[392845928,1762045846342,-152.0,0.00024985,3]
[392845929,1762045846351,-331.0,0.00024985,3]
[392845930,1762045846364,-152.0,0.00024985,3]
[392845931,1762045846373,-152.0,0.00024985,3]
[392845932,1762045846382,-153.73192086,0.00024985,3]
[392845933,1762045846391,-152.0,0.00024985,3]
[392845934,1762045846401,-166.0,0.00024985,3]
[392845935,1762045846410,-166.0,0.00024985,3]
[392845936,1762045846419,-166.0,0.00024985,3]
[392845937,1762045846429,-151.0,0.00024985,2]
[392845938,1762045846438,-151.0,0.00024985,2]
[392845939,1762045846447,-151.0,0.00024985,2]
[392845940,1762045846455,-151.0,0.00024985,2]
[392845941,1762045846465,-151.0,0.00024985,2]
[392845942,1762045846474,-151.0,0.00024985,2]
[392845943,1762045846483,-151.0,0.00024985,2]
[392845944,1762045846491,-151.0,0.00024985,2]
[392845945,1762045846500,-151.0,0.00024985,2]
[392845946,1762045846510,-166.0,0.00024985,3]
[392845947,1762045846519,-151.0,0.00024985,2]
[392845948,1762045846527,-152.0,0.00024985,3]
[392845949,1762045846537,-152.0,0.00024985,3]
[392845950,1762045846546,-151.0,0.00024985,2]
[392845951,1762045846555,-151.0,0.00024985,3]
[392845952,1762045846564,-151.0,0.00024985,2]
[392845953,1762045846572,-189.15012302,0.00024985,3]
[392845954,1762045846581,-151.0,0.00024985,2]
[392845955,1762045846590,-151.0,0.00024985,3]
[392845956,1762045846599,-151.0,0.00024985,2]
[392845957,1762045846608,-176.51000242,0.00024985,3]
[392845958,1762045846617,-151.0,0.00024985,2]
[392845959,1762045846626,-151.0,0.00024985,3]
[392845960,1762045846635,-151.0,0.00024985,2]
[392845961,1762045846644,-151.0,0.00024985,2]
[392845962,1762045846653,-151.0,0.00024985,2]
[392845963,1762045846662,-151.0,0.00024985,2]
[392845964,1762045846671,-151.0,0.00024985,2]
[392845965,1762045846680,-151.0,0.00024985,3]
[392845966,1762045846689,-163.37984851,0.00024989,2]
[392845967,1762045846699,-159.07156721,0.00024989,2]
[392845968,1762045896142,150.0,0.00021898,2]
[392845972,1762045941385,1008.02,0.00032,120]
[392845976,1762046074433,408.223695,0.00023992,2]
[392845981,1762046204130,169.226947,0.00030137,120]
[392845991,1762046467009,325.214063,0.00013699,2]
[392845992,1762046467210,325.214063,0.00020187,2]
[392845996,1762046597436,252.5,0.00032877,120]
[392845997,1762046602311,1005.42,0.00024142,2]
[392846008,1762046884265,161.31617103,0.00024052,2]
[392846009,1762046886977,290.36910785,0.00024052,2]
[392846010,1762046889923,516.21174728,0.00024052,2]
[392846011,1762046892526,250.67031696,0.00024126,2]
[392846012,1762046895681,2118.1419173,0.000176,2]
[392846013,1762046904748,5657.88073958,0.00017,2]
[392846014,1762046904771,2223.98734312,0.00017,2]
[392846015,1762046905236,7776.02265688,0.00022,5]
[392846016,1762046905257,10000.01,0.00022,5]
[392846017,1762046905280,8157.20052499,0.00022,5]
[392846018,1762046929856,-676.30832422,0.00024142,2]
[392846019,1762046929954,-10000.01,0.00024142,2]
[392846020,1762046932796,-10000.01,0.00024142,2]
[392846021,1762046933143,-10000.01,0.00024142,2]
[392846022,1762046936424,-10000.01,0.00024142,2]
[392846023,1762046942567,300.0,0.00024141,2]
[392846026,1762047002068,188.0,0.00024141,2]
[392846028,1762047006822,345.72153354,0.00038021,60]
[392846030,1762047007292,361.0,0.00024141,2]
[392846036,1762047016199,240.06711777,0.00024142,2]
[392846057,1762047032560,-3752.36351003,0.00024142,2]
[392846089,1762047038364,-312.32455479,0.00024142,2]
[392846275,1762047044036,1233.98,0.00038021,60]
[392846281,1762047047170,150.0,0.00020837,2]
[392846287,1762047080042,5468.0,0.00038021,60]
[392846294,1762047097831,485.59877112,0.00038021,60]
[392846297,1762047107770,500.0,0.00024141,2]
[392846298,1762047107820,613.488539,0.00024141,2]
[392846299,1762047116352,874.40861994,0.00024042,2]
[392846329,1762047163294,705.28,0.00032876,120]
[392846330,1762047163575,360.90824845,0.00032876,120]
[392846373,1762047312535,500.0,0.00024141,2]
[392846374,1762047312777,500.0,0.00024141,2]
[392846375,1762047313014,500.0,0.00024141,2]
[392846376,1762047316488,765.1075425,0.00024042,2]
[392846379,1762047423341,419.1308495,0.00024142,2]
[392846380,1762047430618,-150.0,0.00024142,2]
[392846381,1762047487503,-159.28254647,0.00024142,2]
[392846382,1762047489034,-215.53506521,0.00024142,2]
[392846383,1762047493445,-183.46693851,0.00024142,2]
[392846384,1762047494986,-289.79061869,0.00024142,2]
[392846386,1762047518103,-404.82508367,0.00024142,2]
[392846387,1762047521389,-214.37675092,0.00024142,2]
[392846388,1762047521770,669.46909967,0.00024042,2]
[392846390,1762047545103,464.6,0.0003287,120]
[392846391,1762047547543,-164.77441272,0.00024142,2]
[392846393,1762047557437,468.78352559,0.00024141,2]
[392846394,1762047557760,150.0,0.00020993,2]
[392846395,1762047562982,629.38220472,0.00023787,2]
[392846397,1762047566106,1132.88796849,0.00023787,2]
[392846398,1762047569088,2014.02305509,0.00023787,2]
[392846399,1762047574490,963.1451422,0.0002406,2]
[392846400,1762047592513,-172.05713814,0.00024142,2]
[392846402,1762047606921,1200.0,0.00024141,2]
[392846403,1762047621238,197.4618803,0.00038021,120]
[392846404,1762047621621,150.0,0.00021042,2]
[392846405,1762047637519,-277.67426449,0.00024142,2]
[392846406,1762047639718,-346.4762763,0.00024142,2]
[392846407,1762047643184,-248.08173932,0.00024142,2]
[392846409,1762047647330,-235.26155066,0.00024142,2]
[392846410,1762047648870,-201.99864785,0.00024142,2]
[392846411,1762047667494,-160.92562351,0.00024142,2]
[392846412,1762047669263,-277.94286186,0.00024142,2]
[392846413,1762047686061,150.0,0.00020268,2]
[392846414,1762047686700,-187.75049407,0.00024142,2]
[392846415,1762047687935,300.0,0.000241,2]
[392846416,1762047689423,-239.98752112,0.00024142,2]
[392846417,1762047692493,-160.8061592,0.00024142,2]
[392846418,1762047695180,-380.71823815,0.00024142,2]
[392846422,1762047712488,-232.35322619,0.00024142,2]
[392846424,1762047715581,-180.54684439,0.00024142,2]
[392846425,1762047717606,-184.55838014,0.00024142,2]
[392846426,1762047721171,-230.73758746,0.00024142,2]
[392846429,1762047727275,748.38762726,0.00024042,2]
[392846431,1762047742493,-151.0,0.00024142,2]
[392846432,1762047743999,-231.29042811,0.00024142,2]
[392846433,1762047748989,-290.5695865,0.00024142,2]
[392846434,1762047755878,-245.92527008,0.00024142,2]
[392846435,1762047761757,-151.0,0.00024142,2]
[392846436,1762047764285,-187.75522723,0.00024142,2]
[392846437,1762047766340,-295.65083846,0.00024142,2]
[392846438,1762047780098,744.0884324,0.0002406,2]
[392846439,1762047782331,379.84294458,0.00023755,2]
[392846440,1762047782355,106.39323891,0.00023755,2]
[392846441,1762047785164,875.22513028,0.00023755,2]
[392846443,1762047785422,9018.39163081,0.0002414,2]
[392846444,1762047785445,10000.01,0.0002414,2]
[392846445,1762047785466,10000.01,0.0002414,2]
[392846446,1762047785487,1857.59535109,0.0002414,2]
[392846448,1762047788128,1555.95578717,0.00023755,2]
[392846450,1762047870417,341.84853791,0.00023755,2]
[392846456,1762047937568,654.83917387,0.00024042,2]
[392846457,1762047997564,-164.26,0.00024142,2]
[392846458,1762048000716,-228.07955305,0.00024142,2]
[392846459,1762048002845,-185.15657449,0.00024142,2]
[392846460,1762048061430,1200.0,0.00024141,2]
[392846463,1762048142855,572.98427711,0.00024042,2]
[392846476,1762048232520,-7517.84433443,0.00024142,2]
[392846560,1762048240871,-3e-08,0.00024142,2]
[392846650,1762048246519,-487.07416272,0.00024142,2]
[392846651,1762048246869,-3400.47106645,0.00024142,2]
[392846652,1762048252907,430.981547,0.00038021,60]
[392846654,1762048260342,249.2653836,0.00038021,120]
[392846672,1762048343382,501.36124248,0.00024042,2]
[392846673,1762048348412,515.22513733,0.00024141,2]
[392846674,1762048388913,151.0,0.00024,8]
[392846675,1762048389224,151.0,0.000214,3]
[392846676,1762048389554,151.0,0.000188,2]
[392846677,1762048389902,151.0,0.000162,2]
[392846683,1762048548513,438.69108717,0.00024042,2]
[392846684,1762048656192,1037.07578067,0.00023,5]
[392846686,1762048672100,4043.0,0.00024142,2]
[392846687,1762048682828,18437.0,0.000328,120]
[392846689,1762048753754,90.98476346,0.00024042,2]
[392846690,1762048753776,292.86993784,0.00024042,2]
[392846693,1762048881040,169.226947,0.00030137,120]
[392846695,1762048959635,335.87286362,0.00024042,2]
[392846696,1762048986978,266.84133725,0.00023736,2]
[392846698,1762049073454,326.61335884,0.00023719,2]
[392846699,1762049161988,206.217183,0.00023652,2]
[392846700,1762049164901,293.88875565,0.00024042,2]
[392846703,1762049261321,495.0,0.00024141,2]
[392846704,1762049370342,257.15266122,0.00024042,2]
[392846744,1762049432815,-321.0,0.00024142,2]
[392846804,1762049440738,-3833.8638123,0.00024142,2]
[392846806,1762049440750,-556.43543237,0.00024142,2]
[392846807,1762049440797,-41661.7793557,0.00024142,2]
[392846808,1762049440807,-425.0,0.00024142,2]
[392846809,1762049440817,-152.0,0.00024142,3]
[392846810,1762049440826,-167.7283462,0.00024142,3]
[392846811,1762049440836,-150.0,0.00024142,2]
[392846812,1762049440845,-406.8157081,0.00024152,2]
[392846813,1762049440855,-177.9197578,0.00024152,2]
[392846814,1762049440866,-174.8610571,0.00024152,2]
[392846815,1762049440876,-13530.63030804,0.00024171,2]
[392846824,1762049454722,500.0,0.00024141,2]
[392846825,1762049454751,596.47934409,0.00024141,2]
[392846826,1762049454781,500.0,0.00024141,2]
[392846827,1762049454809,243.56650967,0.00024141,2]
[392846828,1762049454840,500.0,0.00024141,2]
[392846829,1762049454869,596.8283425,0.00024141,2]
[392846830,1762049454900,612.89950831,0.00024141,2]
[392846835,1762049500916,646.61032527,0.00024091,2]
[392846836,1762049590484,377.82793903,0.00023693,2]
[392846841,1762049669328,161.0,0.000328,120]
[392846842,1762049669822,384.3847533,0.00023873,30]
[392846844,1762049670347,161.0,0.000328,120]
[392846846,1762049695390,161.0,0.000328,120]
[392846850,1762049782467,292.692656,0.00013699,2]
[392846851,1762049782673,292.692656,0.00020187,2]
[392846855,1762049891542,161.0,0.00024,4]
[392846856,1762049892415,161.0,0.00024,4]
[392846857,1762049905397,161.0,0.00024,4]
[392846858,1762049915322,4357.41271913,0.00024,2]
[392846859,1762049915344,2689.58728087,0.00024,2]
[392846862,1762050275774,800.0,0.00023911,2]
[392846863,1762050275819,800.0,0.00023939,2]
[392846864,1762050275876,800.0,0.00023886,2]
[392846868,1762050311671,181.62311624,0.00024046,2]
[392846869,1762050335805,811.26951535,0.00024017,2]
[392846871,1762050447711,1510.86490211,0.00038019,120]
[392846873,1762050478689,3328.3422382,0.0003802,60]
[392846874,1762050489702,421.66711045,0.00010618,2]
[392846875,1762050493632,151.0,0.00032876,120]
[392846876,1762050507922,1198.44289429,0.0003802,60]
[392846877,1762050509896,737.18186515,0.0003802,120]
[392846878,1762050510413,3495.86297709,0.00017,2]
[392846879,1762050510437,3246.82794377,0.00017,2]
[392846880,1762050513163,639.59662535,0.0003802,60]
[392846881,1762050514772,289.23196062,0.0003802,120]
[392846882,1762050515809,243.30810454,0.0003802,120]
[392846883,1762050515854,2522.59236839,0.0003802,120]
[392846884,1762050518143,247.5897438,0.0003802,60]
[392846885,1762050518425,267.51761962,0.0003802,60]
[392846886,1762050520513,150.53857602,0.0003802,60]
[392846887,1762050522656,461.91351522,0.0003802,120]
[392846889,1762050523260,233.11430435,0.0003802,120]
[392846890,1762050550699,151.0146861,0.00032876,120]
[392846919,1762050631746,-5036.9374862,0.00024142,2]
[392846922,1762050631757,-538.86766049,0.00024142,2]
[392846927,1762050631802,-1215.34617573,0.00024142,2]